bitfinex-derivatives/quotes_BNBF0:USTF0_20250904
["timestamp","ask_amount","ask_price","bid_price","bid_amount"]
[1757011108034,0.20617763,844.05,843.48,0.79095695]
[1757011109235,0.20617763,844.05,843.49,0.79095695]
[1757011109435,0.20617763,844.05,843.48,0.79095695]
[1757011111333,0.20617763,844.05,843.47,0.79095695]
[1757011112336,0.20617763,844.05,843.46,0.79095695]
[1757011113334,0.20617763,844.05,843.48,0.79095695]
[1757011115138,0.20617763,844.05,843.43,0.79095695]
[1757011117739,0.20617763,844.05,843.45,0.79095695]
[1757011118236,0.20617763,844.05,843.44,0.79095695]
[1757011119239,0.20617763,844.05,843.43,0.79095695]
[1757011119937,0.20617763,844.05,843.44,0.79095695]
[1757011121243,0.20617763,844.05,843.43,0.79095695]
[1757011123648,0.20617763,844.05,843.45,0.79095695]
[1757011123948,0.20617763,844.05,843.51,0.79095695]
[1757011124443,0.20617763,844.05,843.5,0.79095695]
[1757011125045,0.20617763,844.05,843.53,0.79095695]
[1757011125245,0.20617763,844.05,843.55,0.79095695]
[1757011126349,0.20617763,844.05,843.54,0.79095695]
[1757011128052,0.20617763,844.05,843.53,0.79095695]
[1757011128349,0.20617763,844.05,843.54,0.79095695]
[1757011131647,0.20614648,844.17,843.55,0.79095695]
[1757011132649,0.20614648,844.17,843.54,0.79095695]
[1757011132948,0.20614648,844.17,843.6,0.79095695]
[1757011133651,0.20614648,844.17,843.61,0.79095695]
[1757011134250,0.20614648,844.17,843.6,0.79095695]
[1757011134856,0.78927192,844.5,843.6,0.79095695]
[1757011135058,0.20612145,844.29,843.6,0.79095695]
[1757011135253,0.20612145,844.29,843.61,0.79095695]
[1757011136355,0.20612145,844.29,843.6,0.79095695]
[1757011137459,0.20612145,844.29,843.59,0.79095695]
[1757011137853,0.20612145,844.29,843.6,0.79095695]
[1757011138056,0.20612145,844.29,843.62,0.79095695]
[1757011138357,0.20612145,844.29,843.61,0.79095695]
[1757011138558,0.20612145,844.29,843.6,0.79095695]
[1757011140953,0.20612145,844.29,843.43,1.0629753]
[1757011141157,0.20612145,844.29,843.6,0.79538174]
[1757011141359,0.20612145,844.29,843.59,0.79538174]
[1757011141659,0.20612145,844.29,843.6,0.79538174]
[1757011142154,0.20612145,844.29,843.59,0.79538174]
[1757011142953,0.20612145,844.29,842.6,2.6574383]
[1757011142954,0.20612145,844.29,843.58,0.79538174]
[1757011144159,0.20612145,844.29,843.57,0.79538174]
[1757011144455,0.20612145,844.29,843.58,0.79538174]
[1757011144755,0.20612145,844.29,843.59,0.79538174]
[1757011145860,0.20612145,844.29,843.6,0.79538174]
[1757011146161,0.20612145,844.29,843.59,0.79538174]
[1757011146361,0.20612145,844.29,843.6,0.79538174]
[1757011147363,0.20612145,844.29,843.61,0.79538174]
[1757011148478,0.20612145,844.29,843.63,0.79538174]
[1757011149365,0.20612145,844.29,843.64,0.79538174]
[1757011150264,0.20612145,844.29,843.65,0.79538174]
[1757011151567,0.20612145,844.29,843.64,0.79538174]
[1757011152765,0.20612145,844.29,843.65,0.79538174]
[1757011153065,0.20612145,844.29,843.7,0.79538174]
[1757011155267,0.20612145,844.29,843.74,0.79538174]
[1757011155571,0.79334704,844.67,843.77,0.79538174]
[1757011155770,0.2061007,844.38,843.77,0.79538174]
[1757011156366,0.2061007,844.38,843.78,0.79538174]
[1757011157170,0.2061007,844.38,843.76,0.79538174]
[1757011158670,0.2061007,844.38,843.72,0.79538174]
[1757011161269,0.2061007,844.38,843.73,0.79538174]
[1757011162271,0.2061007,844.38,843.72,0.79538174]
[1757011162471,0.2061007,844.38,843.73,0.79538174]
[1757011162670,0.2061007,844.38,843.74,0.79538174]
[1757011162974,0.2061007,844.38,843.73,0.79538174]
[1757011164572,0.2061007,844.38,843.72,0.79538174]
[1757011165872,0.2061007,844.38,843.71,0.79538174]
[1757011167077,0.2061007,844.38,843.72,0.79538174]
[1757011168679,0.2061007,844.38,843.71,0.79538174]
[1757011169175,0.2061007,844.38,843.7,0.79538174]
[1757011170978,0.2061007,844.38,843.71,0.79538174]
[1757011171682,0.2061007,844.38,843.53,1.0629753]
[1757011171683,0.2061007,844.38,843.72,0.79538174]
[1757011172181,0.2061007,844.38,843.61,0.79538174]
[1757011172382,0.2061007,844.38,843.63,0.79538174]
[1757011174282,0.2061007,844.38,843.64,0.79538174]
[1757011174481,0.2061007,844.38,843.65,0.79538174]
[1757011175283,0.2061007,844.38,843.66,0.79538174]
[1757011176382,0.2061007,844.38,843.67,0.79538174]
[1757011178387,0.2061007,844.38,843.68,0.79538174]
[1757011178984,0.2061007,844.38,843.67,0.79538174]
[1757011180387,0.2061007,844.38,843.68,0.79538174]
[1757011180589,0.2061007,844.38,843.69,0.79538174]
[1757011181185,0.2061007,844.38,843.72,0.79538174]
[1757011181389,0.2061007,844.38,843.73,0.79538174]
[1757011181986,0.2061007,844.38,843.76,0.79538174]
[1757011183189,0.2061007,844.38,843.77,0.79538174]
[1757011183390,0.2061007,844.38,843.78,0.79538174]
[1757011184990,0.2061007,844.38,843.85,0.79538174]
[1757011186189,0.2061007,844.38,843.81,0.79538174]
[1757011186388,0.2061007,844.38,843.63,0.79538174]
[1757011188389,0.2061007,844.38,843.64,0.79538174]
[1757011188596,0.2061007,844.38,843.72,0.79538174]
[1757011189396,0.2061007,844.38,843.75,0.79538174]
[1757011190497,0.2061007,844.38,843.76,0.79538174]
[1757011192298,0.2061007,844.38,843.75,0.79538174]
[1757011192594,0.2061007,844.38,842.29,3.7204137]
[1757011192595,0.2061007,844.38,843.76,0.79538174]
[1757011194097,0.2061007,844.38,843.77,0.79538174]
[1757011197299,0.2061007,844.38,843.78,0.79538174]
[1757011200598,0.2061007,844.38,843.79,0.79538174]
[1757011201800,0.2061007,844.38,843.78,0.79538174]
[1757011203300,0.2061007,844.38,843.79,0.79538174]
[1757011204606,0.2061007,844.38,843.78,0.79538174]
[1757011206107,0.2061007,844.38,843.74,0.79538174]
[1757011206403,0.2061007,844.38,843.65,0.79538174]
[1757011207809,0.2061007,844.38,843.63,0.79538174]
[1757011208308,0.2061007,844.38,843.64,0.79538174]
[1757011208604,0.2061007,844.38,843.63,0.79538174]
[1757011209108,0.2061007,844.38,843.64,0.79538174]
[1757011209305,0.2061007,844.38,843.63,0.79538174]
[1757011209516,0.2061007,844.38,843.62,0.79538174]
[1757011211709,0.79334704,844.36,843.65,0.79538174]
[1757011212008,0.79334704,844.33,843.67,0.79538174]
[1757011212209,0.79334704,844.3,843.62,0.79538174]
[1757011213107,0.79334704,844.26,843.59,0.79538174]
[1757011214210,0.79334704,844.26,843.58,0.79538174]
[1757011214914,0.79334704,844.27,843.58,0.79538174]
[1757011215213,0.79334704,844.28,843.57,0.79538174]
[1757011215811,0.79334704,844.29,843.59,0.79538174]
[1757011216314,0.79334704,844.3,843.59,0.79538174]
[1757011216815,0.79334704,844.3,843.58,0.79538174]
[1757011217110,0.2061007,844.38,843.58,0.79538174]
[1757011217111,0.79334704,844.31,843.58,0.79538174]
[1757011217715,0.79334704,844.3,843.58,0.79538174]
[1757011218210,0.79334704,844.31,843.58,0.79538174]
[1757011219414,0.79334704,844.31,843.57,0.79538174]
[1757011220110,0.79334704,844.32,843.57,0.79538174]
[1757011222815,0.79334704,844.31,843.58,0.79538174]
[1757011223214,0.79334704,844.31,843.57,0.79538174]
[1757011224811,0.79334704,844.31,843.58,0.79538174]
[1757011225711,0.79334704,844.3,843.58,0.79538174]
[1757011226215,0.79334704,844.31,843.58,0.79538174]
[1757011226611,0.79334704,844.3,843.58,0.79538174]
[1757011226915,0.79334704,844.31,843.58,0.79538174]
[1757011229519,0.79334704,844.3,843.58,0.79538174]
[1757011231221,0.79334704,844.29,843.58,0.79538174]
[1757011232122,0.79334704,844.3,843.58,0.79538174]
[1757011232923,0.79334704,844.31,843.58,0.79538174]
[1757011233123,0.79334704,844.3,843.58,0.79538174]
[1757011234424,0.79334704,844.32,843.57,0.79538174]
[1757011235921,0.79334704,844.37,843.53,0.79538174]
[1757011236721,0.79334704,844.36,843.54,0.79538174]
[1757011239123,0.79334704,844.37,843.53,0.79538174]
[1757011239327,0.79334704,844.36,843.54,0.79538174]
[1757011240127,0.79334704,844.28,843.59,0.79538174]
[1757011240327,0.79334704,844.28,843.6,0.79538174]
[1757011241329,0.79334704,844.31,843.61,0.79538174]
[1757011241526,0.79334704,844.33,843.64,0.79538174]
[1757011242629,0.79334704,844.36,843.66,0.79538174]
[1757011242826,0.79334704,844.36,843.67,0.79538174]
[1757011243729,0.79334704,844.37,843.67,0.79538174]
[1757011244131,0.79334704,844.36,843.67,0.79538174]
[1757011245232,0.79334704,844.36,843.68,0.79538174]
[1757011246331,0.79334704,844.35,843.68,0.79538174]
[1757011247329,0.79334704,844.35,843.69,0.79538174]
[1757011247535,0.79334704,844.35,843.68,0.79538174]
[1757011248133,0.79334704,844.35,843.69,0.79538174]
[1757011250032,0.79334704,844.34,843.69,0.79538174]
[1757011250737,0.79334704,844.33,843.69,0.79538174]
[1757011251240,0.79334704,844.32,843.7,0.79538174]
[1757011251639,0.79334704,844.33,843.69,0.79538174]
[1757011251840,0.79334704,844.27,843.63,0.79538174]
[1757011253135,0.79334704,844.26,843.62,0.79538174]
[1757011253535,0.79334704,844.26,843.63,0.79538174]
[1757011255142,0.79334704,844.26,843.64,0.79538174]
[1757011255642,0.79334704,844.25,843.64,0.79538174]
[1757011257341,0.79334704,844.25,843.65,0.79538174]
[1757011258141,0.79334704,844.24,843.65,0.79538174]
[1757011259438,0.79334704,844.23,843.64,0.79538174]
[1757011261044,0.79334704,844.22,843.65,0.79538174]
[1757011261549,0.79334704,844.21,843.65,0.79538174]
[1757011261747,0.79334704,844.22,843.65,0.79538174]
[1757011262245,0.79334704,844.21,843.66,0.79538174]
[1757011262444,0.79334704,844.21,843.52,1.0629753]
[1757011262445,0.79334704,844.23,843.65,0.79538174]
[1757011262645,0.79334704,844.23,843.64,0.79538174]
[1757011262849,0.79334704,844.22,843.65,0.79538174]
[1757011263151,0.79334704,844.21,843.66,0.79538174]
[1757011263350,0.79334704,844.17,843.62,0.79538174]
[1757011264247,0.79334704,844.17,843.63,0.79538174]
[1757011265249,0.79334704,844.16,843.64,0.79538174]
[1757011265551,0.79334704,844.16,843.63,0.79538174]
[1757011266054,0.79334704,844.17,843.63,0.79538174]
[1757011266250,0.79334704,844.16,843.64,0.79538174]
[1757011268652,0.79334704,844.17,843.63,0.79538174]
[1757011269157,0.79334704,844.18,843.65,0.79538174]
[1757011269354,0.79334704,844.19,843.65,0.79538174]
[1757011272155,0.79334704,844.2,843.64,0.79538174]
[1757011272353,0.79334704,844.2,842.44,3.7204137]
[1757011272354,0.79334704,844.27,843.6,0.79538174]
[1757011277756,0.79334704,844.27,843.59,0.79538174]
[1757011278458,0.79334704,844.27,843.6,0.79538174]
[1757011279658,0.79334704,844.22,843.53,0.79538174]
[1757011281158,0.79334704,844.22,843.52,0.79538174]
[1757011281657,0.79334704,844.23,843.53,0.79538174]
[1757011282360,0.79334704,844.23,842.31,2.6574383]
[1757011282361,0.79334704,844.19,843.56,0.79538174]
[1757011283661,0.79334704,844.17,843.57,0.79538174]
[1757011284364,0.79334704,844.17,843.56,0.79538174]
[1757011284560,0.79334704,844.18,843.57,0.79538174]
[1757011284763,0.79334704,844.18,843.56,0.79538174]
[1757011287961,0.79334704,844.24,843.52,0.79538174]
[1757011291768,0.79334704,844.25,843.53,0.79538174]
[1757011292368,0.2061007,844.38,842.33,2.6574383]
[1757011292369,0.79334704,844.26,843.54,0.79538174]
[1757011292871,0.79334704,844.27,843.55,0.79538174]
[1757011294668,0.79334704,844.28,843.56,0.79538174]
[1757011295169,0.79334704,844.3,843.57,0.79538174]
[1757011295472,0.79334704,844.29,843.57,0.79538174]
[1757011297572,0.79334704,844.23,843.6,0.79538174]
[1757011297772,0.79334704,844.22,843.61,0.79538174]
[1757011302479,0.79334704,844.21,843.62,0.79538174]
[1757011304078,0.79334704,844.2,843.62,0.79538174]
[1757011304279,0.79334704,844.18,843.64,0.79538174]
[1757011304478,0.79334704,844.17,843.64,0.79538174]
[1757011305374,0.79334704,844.17,843.65,0.79538174]
[1757011307382,0.79334704,844.16,843.65,0.79538174]
[1757011308178,0.79334704,844.16,843.66,0.79538174]
[1757011310083,0.79334704,844.15,843.66,0.79538174]
[1757011310383,0.79334704,844.15,843.67,0.79538174]
[1757011315189,0.79334704,844.14,843.67,0.79538174]
[1757011317391,0.79334704,844.14,843.68,0.79538174]
[1757011319091,0.79334704,844.15,843.68,0.79538174]
[1757011320290,0.79334704,844.34,843.69,0.79538174]
[1757011320488,0.79334704,844.34,843.49,1.0629753]
[1757011320489,0.99944774,844.38,843.7,0.79538174]
[1757011320690,0.2061007,844.38,843.71,0.79538174]
[1757011321294,0.2061007,844.38,843.7,0.79538174]
[1757011323198,0.2061007,844.38,843.69,0.79538174]
[1757011325200,0.2061007,844.38,843.68,0.79538174]
[1757011326198,0.2061007,844.38,843.67,0.79538174]
[1757011330203,0.2061007,844.38,843.69,0.79538174]
[1757011330502,0.99944774,844.38,843.71,0.79538174]
[1757011331103,0.99944774,844.38,843.7,0.79538174]
[1757011332403,0.79334704,844.37,843.71,0.79538174]
[1757011334604,0.79334704,844.36,843.71,0.79538174]
[1757011335307,0.79334704,844.34,843.73,0.79538174]
[1757011339909,0.79334704,844.37,843.73,0.79538174]
[1757011341806,0.2061007,844.38,843.73,0.79538174]
[1757011342409,0.2061007,844.38,843.79,0.79538174]
[1757011342712,0.2061007,844.38,843.8,0.79538174]
[1757011343208,0.2061007,844.38,843.79,0.79538174]
[1757011344913,0.2061007,844.38,843.77,0.79538174]
[1757011345111,0.2061007,844.38,843.76,0.79538174]
[1757011349314,0.2061007,844.38,843.75,0.79538174]
[1757011349615,0.2061007,844.38,843.76,0.79538174]
[1757011349815,0.2061007,844.38,843.74,0.79538174]
[1757011351213,0.2061007,844.38,843.73,0.79538174]
[1757011351412,0.2061007,844.38,843.74,0.79538174]
[1757011352618,0.2061007,844.38,843.75,0.79538174]
[1757011353219,0.2061007,844.38,843.74,0.79538174]
[1757011354621,0.2061007,844.38,843.75,0.79538174]
[1757011358921,0.2061007,844.38,843.74,0.79538174]
[1757011359418,0.2061007,844.38,843.75,0.79538174]
[1757011363420,0.2061007,844.38,843.58,1.0629753]
[1757011363421,0.2061007,844.38,843.76,0.79538174]
[1757011367324,0.2061007,844.38,843.77,0.79538174]
[1757011368925,0.2061007,844.38,842.38,3.7204137]
[1757011368926,0.2061007,844.38,843.78,0.79538174]
[1757011369626,0.2061007,844.38,843.8,0.79538174]
[1757011371325,0.2061007,844.38,843.81,0.79538174]
[1757011371639,0.2061007,844.38,843.85,0.79538174]
[1757011371931,0.2061007,844.38,843.86,0.79538174]
[1757011372128,0.2061007,844.38,843.85,0.79538174]
[1757011372332,0.2061007,844.38,843.86,0.79538174]
[1757011373633,0.2061007,844.38,843.87,0.79538174]
[1757011374330,0.2061007,844.38,843.86,0.79538174]
[1757011374530,0.2061007,844.38,843.87,0.79538174]
[1757011374835,0.2061007,844.38,843.88,0.79538174]
[1757011375435,0.2061007,844.38,843.85,0.79538174]
[1757011375732,0.2061007,844.38,843.87,0.79538174]
[1757011376534,0.2061007,844.38,843.88,0.79538174]
[1757011377330,0.2061007,844.38,842.8,2.6574383]
[1757011377331,0.2061007,844.38,843.89,0.79538174]
[1757011378035,0.2061007,844.38,843.88,0.79538174]
[1757011378532,0.2061007,844.38,843.7,1.0629753]
[1757011378533,0.2061007,844.38,843.89,0.79538174]
[1757011378733,0.2061007,844.38,843.88,0.79538174]
[1757011379533,0.2061007,844.38,843.89,0.79538174]
[1757011381133,0.2061007,844.38,843.88,0.79538174]
[1757011381337,0.2061007,844.38,843.89,0.79538174]
[1757011381533,0.2061007,844.38,843.88,0.79538174]
[1757011383437,0.2061007,844.38,843.91,0.79538174]
[1757011384138,0.2061007,844.38,843.92,0.79538174]
[1757011384338,0.2061007,844.38,843.91,0.79538174]
[1757011384738,0.2061007,844.38,843.9,0.79538174]
[1757011391143,0.2061007,844.38,843.91,0.79538174]
[1757011391343,0.2061007,844.38,843.9,0.79538174]
[1757011391641,0.2061007,844.38,843.91,0.79538174]
[1757011392643,0.2061007,844.38,843.92,0.79538174]
[1757011394146,0.2061007,844.38,843.93,0.79538174]
[1757011394646,0.2061007,844.38,843.9,0.79538174]
[1757011398146,0.2061007,844.38,843.91,0.79538174]
[1757011400149,0.2061007,844.38,843.92,0.79538174]
[1757011400352,0.2061007,844.38,843.91,0.79538174]
[1757011402157,0.2061007,844.38,843.92,0.79538174]
[1757011404563,0.2061007,844.38,843.95,0.79538174]
[1757011407367,0.2061007,844.38,843.94,0.79538174]
[1757011407867,0.79334704,844.47,843.94,0.79538174]
[1757011408167,0.20609887,844.28,843.93,0.79538174]
[1757011412173,0.20609887,844.28,843.94,0.79538174]
[1757011412374,0.20609887,844.28,843.93,0.79538174]
[1757011415174,0.20609887,844.28,843.94,0.79538174]
[1757011418174,0.20609887,844.28,843.95,0.79538174]
[1757011423681,0.20609887,844.28,843.89,0.79538174]
[1757011423881,0.20609887,844.28,843.83,0.79538174]
[1757011424081,0.20609887,844.28,843.82,0.79538174]
[1757011424377,0.20609887,844.28,843.81,0.79538174]
[1757011426581,0.20609887,844.28,843.79,0.79538174]
[1757011426778,0.20609887,844.28,843.72,0.79538174]
[1757011427078,0.20609887,844.28,843.71,0.79538174]
[1757011427377,0.20609887,844.28,843.73,0.79538174]
[1757011428179,0.20609887,844.28,843.72,0.79538174]
[1757011428883,0.20609887,844.28,843.73,0.79538174]
[1757011429081,0.20609887,844.28,843.72,0.79538174]
[1757011430187,0.20609887,844.28,843.71,0.79538174]
[1757011431190,0.20609887,844.28,843.67,0.79538174]
[1757011431389,0.20609887,844.28,843.55,0.79538174]
[1757011431589,0.20609887,844.28,843.35,1.0629753]
[1757011431590,0.20609887,844.28,843.53,0.79538174]
[1757011432292,0.79334704,844.23,843.46,0.79538174]
[1757011433093,0.79334704,844.22,843.45,0.79538174]
[1757011433392,0.79334704,844.24,843.4,0.79538174]
[1757011434090,0.79334704,844.24,843.2,1.0629753]
[1757011434091,0.79334704,844.24,843.41,0.79538174]
[1757011434393,0.79334704,844.26,843.39,0.79538174]
[1757011435294,0.99944591,844.28,843.37,0.79538174]
[1757011435996,0.79334704,844.27,843.38,0.79538174]
[1757011436192,0.79334704,844.25,843.39,0.79538174]
[1757011437293,0.79334704,844.26,843.38,0.79538174]
[1757011438297,0.79334704,844.26,843.02,1.594463]
[1757011438298,0.79334704,844.27,843.37,0.79538174]
[1757011438995,0.20609887,844.28,843.36,0.79538174]
[1757011439293,0.20609887,844.28,843.35,0.79538174]
[1757011441400,0.20609887,844.28,843.34,0.79538174]
[1757011441601,0.20609887,844.28,843.35,0.79538174]
[1757011442001,0.99944591,844.28,843.35,0.79538174]
[1757011442297,0.79334704,844.27,843.35,0.79538174]
[1757011443002,0.79334704,844.26,843.36,0.79538174]
[1757011443402,0.79334704,844.26,843.35,0.79538174]
[1757011443697,0.79334704,844.26,843.19,1.0629753]
[1757011443698,0.99944591,844.28,843.34,0.79538174]
[1757011444302,0.79334704,844.27,843.33,0.79538174]
[1757011444504,0.79334704,844.27,843.31,0.79538174]
[1757011445100,0.20609887,844.28,843.29,0.79538174]
[1757011445305,0.79334704,844.25,843.24,0.79538174]
[1757011445705,0.79334704,844.25,843.18,0.79538174]
[1757011446306,0.79334704,844.25,843.17,0.79538174]
[1757011446702,0.79334704,844.2,843.15,0.79538174]
[1757011447300,0.79334704,844.2,843.14,0.79538174]
[1757011447504,0.79334704,844.21,843.13,0.79538174]
[1757011448201,0.79334704,844.23,843.12,0.79538174]
[1757011448407,0.79334704,844.23,843.11,0.79538174]
[1757011449410,0.79334704,844.17,843.06,0.79538174]
[1757011450303,0.79334704,844.15,843.05,0.79538174]
[1757011450506,0.20609887,844.28,843.03,0.79538174]
[1757011450507,0.79334704,844.16,843.03,0.79538174]
[1757011451403,0.79334704,844.17,843.02,0.79538174]
[1757011452309,0.79334704,844.17,843.01,0.79538174]
[1757011453209,0.79334704,844.19,842.95,0.79538174]
[1757011453406,0.79334704,844.19,842.93,0.79538174]
[1757011454312,0.79334704,844.2,842.92,0.79538174]
[1757011454811,0.79334704,844.19,842.92,0.79538174]
[1757011455307,0.79334704,844.2,842.91,0.79538174]
[1757011455910,0.79334704,844.2,842.87,0.79538174]
[1757011456411,0.79334704,844.15,842.81,0.79538174]
[1757011457313,0.79334704,844.16,842.8,0.79538174]
[1757011457612,0.79334704,844.15,842.81,0.79538174]
[1757011457813,0.79334704,844.16,842.8,0.79538174]
[1757011458512,0.79334704,844.12,842.82,0.79538174]
[1757011459115,0.79334704,844.11,842.74,0.20607934]
[1757011460016,0.79334704,844.12,842.74,0.20607934]
[1757011460218,0.79334704,844.11,842.74,0.20607934]
[1757011460512,0.79334704,844.12,842.74,0.20607934]
[1757011461516,0.79334704,844.13,842.74,0.20607934]
[1757011463418,0.79334704,844.14,842.74,0.20607934]
[1757011465317,0.79334704,844.13,842.74,0.20607934]
[1757011465519,0.79334704,844.14,842.74,0.20607934]
[1757011465718,0.79334704,844.11,842.74,0.20607934]
[1757011466217,0.79334704,844.1,842.74,0.20607934]
[1757011467121,0.79334704,844.09,842.74,0.20607934]
[1757011467323,0.79334704,844.1,842.74,0.20607934]
[1757011467720,0.79334704,844.09,842.74,0.20607934]
[1757011468224,0.79334704,844.1,842.74,0.20607934]
[1757011469626,0.79334704,844.09,842.74,0.20607934]
[1757011470721,0.79334704,844.1,842.74,0.20607934]
[1757011472125,0.79334704,844.11,842.74,0.20607934]
[1757011472726,0.79334704,844.1,842.74,0.20607934]
[1757011472925,0.79334704,844.1,842.59,1.0629753]
[1757011473126,0.79334704,844.1,842.57,1.0629753]
[1757011473329,0.79334704,844.1,842.61,0.2062919]
[1757011473627,0.79334704,844.09,842.61,0.2062919]
[1757011477233,0.79334704,844.08,842.61,1.2692672]
[1757011477434,0.79334704,844.02,842.61,0.2062919]
[1757011479233,0.79334704,844.01,842.61,0.2062919]
[1757011479527,0.79334704,844.02,842.61,0.2062919]
[1757011480233,0.79334704,844.01,842.61,0.2062919]
[1757011481134,0.79334704,844.01,842.61,1.2692672]
[1757011481335,0.79334704,844.0,842.61,1.2692672]
[1757011481929,0.79334704,844.0,842.62,1.0629753]
[1757011482432,0.79334704,843.99,842.63,1.0629753]
[1757011482936,0.79334704,843.98,842.64,1.0629753]
[1757011483231,0.79334704,843.97,842.66,1.0629753]
[1757011484135,0.79334704,843.97,842.67,1.0629753]
[1757011484332,0.79334704,843.96,842.68,1.0629753]
[1757011485235,0.79334704,843.96,842.69,1.0629753]
[1757011485737,0.79334704,843.95,842.7,1.0629753]
[1757011485930,0.79334704,843.95,842.71,1.0629753]
[1757011486133,0.79334704,843.94,842.73,1.0629753]
[1757011487236,0.79334704,843.89,842.79,1.0629753]
[1757011487536,0.79334704,843.89,842.8,1.0629753]
[1757011488236,0.79334704,843.88,842.81,1.0629753]
[1757011489238,0.79334704,843.88,842.98,0.79571873]
[1757011489437,0.79334704,843.87,842.98,0.79571873]
[1757011490134,0.79334704,843.86,843.0,0.79571873]
[1757011491241,0.79334704,843.85,843.02,0.79571873]
[1757011492242,0.79334704,843.84,843.03,0.79571873]
[1757011493341,0.79334704,843.83,843.04,0.79571873]
[1757011495244,0.79334704,843.82,843.05,0.79571873]
[1757011497139,0.79334704,843.8,843.05,0.79571873]
[1757011498146,0.79334704,843.79,843.05,0.79571873]
[1757011499147,0.79334704,843.79,843.06,0.79571873]
[1757011499443,0.79334704,843.8,843.05,0.79571873]
[1757011499643,0.20609887,844.28,843.03,0.79571873]
[1757011499644,0.79334704,843.84,843.03,0.79571873]
[1757011501545,0.79334704,843.83,843.04,0.79571873]
[1757011501748,0.79334704,843.83,843.03,0.79571873]
[1757011502349,0.79334704,843.82,843.05,0.79571873]
[1757011502746,0.79334704,843.99,842.93,0.79571873]
[1757011502947,0.79334704,844.0,842.95,0.79571873]
[1757011503145,0.79334704,844.05,842.93,0.79571873]
[1757011503344,0.79334704,844.04,842.94,0.79571873]
[1757011504448,0.79334704,844.02,842.94,0.79571873]
[1757011505352,0.79334704,844.01,842.95,0.79571873]
[1757011506352,0.79334704,844.0,842.96,0.79571873]
[1757011507354,0.79334704,843.99,842.97,0.79571873]
[1757011508355,0.79334704,843.98,842.98,0.79571873]
[1757011510456,0.79334704,843.97,842.99,0.79571873]
[1757011512357,0.79334704,843.96,843.0,0.79571873]
[1757011512755,0.79334704,843.91,843.03,0.79571873]
[1757011512954,0.79334704,843.83,843.09,0.79571873]
[1757011513362,0.79334704,843.82,843.09,0.79571873]
[1757011513556,0.79334704,843.83,843.09,0.79571873]
[1757011514361,0.79334704,843.81,843.1,0.79571873]
[1757011515764,0.79334704,843.83,843.09,0.79571873]
[1757011516468,0.79334704,843.82,843.09,0.79571873]
[1757011518258,0.79334704,843.82,843.1,0.79571873]
[1757011518772,0.79334704,843.82,843.09,0.79571873]
[1757011519267,0.79334704,843.82,843.1,0.79571873]
[1757011520862,0.79334704,843.83,843.09,0.79571873]
[1757011521463,0.79334704,843.83,843.1,0.79571873]
[1757011522565,0.79334704,843.9,843.06,0.79571873]
[1757011522763,0.79334704,844.07,843.2,0.79571873]
[1757011523263,0.79334704,844.1,843.2,0.79571873]
[1757011523667,0.79334704,844.07,843.23,0.79571873]
[1757011523867,0.79334704,844.11,843.28,0.79571873]
[1757011524167,0.79334704,844.12,843.26,0.79571873]
[1757011525167,0.79334704,844.12,843.01,1.0629753]
[1757011525168,0.79334704,844.13,843.25,0.79571873]
[1757011526068,0.79334704,844.14,843.24,0.79571873]
[1757011527272,0.20609887,844.28,843.24,0.79571873]
[1757011527273,0.79334704,844.15,843.24,0.79571873]
[1757011528177,0.79334704,844.16,843.23,0.79571873]
[1757011529173,0.79334704,844.16,843.22,0.79571873]
[1757011529374,0.79334704,844.17,843.22,0.79571873]
[1757011530575,0.79334704,844.15,843.23,0.79571873]
[1757011532178,0.79334704,844.16,843.22,0.79571873]
[1757011532379,0.79334704,844.13,843.24,0.79571873]
[1757011532575,0.79334704,844.07,843.28,0.79571873]
[1757011532774,0.79334704,844.05,843.29,0.79571873]
[1757011533379,0.79334704,844.04,843.3,0.79571873]
[1757011533576,0.79334704,844.01,843.31,0.79571873]
[1757011533791,0.79334704,844.0,843.29,0.79571873]
[1757011536181,0.79334704,844.01,843.29,0.79571873]
[1757011536386,0.79334704,844.01,843.28,0.79571873]
[1757011536885,0.79334704,844.0,843.29,0.79571873]
[1757011537085,0.79334704,844.01,843.29,0.79571873]
[1757011537286,0.79334704,844.07,843.28,0.79571873]
[1757011537487,0.79334704,844.08,843.29,0.79571873]
[1757011538082,0.79334704,844.09,843.29,0.79571873]
[1757011540187,0.79334704,844.09,843.28,0.79571873]
[1757011541389,0.79334704,844.1,843.28,0.79571873]
[1757011543187,0.79334704,844.1,843.27,0.79571873]
[1757011543390,0.79334704,844.11,843.27,0.79571873]
[1757011545386,0.79334704,844.11,843.26,0.79571873]
[1757011546292,0.79334704,844.12,843.26,0.79571873]
[1757011546789,0.79334704,844.11,843.26,0.79571873]
[1757011547192,0.79334704,844.07,843.29,0.79571873]
[1757011552498,0.79334704,844.08,843.29,0.79571873]
[1757011552700,0.79334704,844.07,843.29,0.79571873]
[1757011553200,0.79334704,844.05,843.3,0.79571873]
[1757011553499,0.79334704,844.06,843.3,0.79571873]
[1757011558297,1.0598737,844.2,843.16,1.0629753]
[1757011558501,0.79461595,844.06,843.3,0.79674858]
[1757011558700,0.79461595,844.05,843.3,0.79674858]
[1757011559501,0.79461595,844.05,843.31,0.79674858]
[1757011559700,0.79461595,844.05,843.3,0.79674858]
[1757011559904,0.79461595,844.05,843.31,0.79674858]
[1757011563303,0.79461595,844.04,843.31,0.79674858]